fUST/lending_fUST_20240209
["ID","MTS","AMOUNT","RATE_DAILY","PERIOD"]
[313607750,1707473432378,-618.09274011,0.00018142,2]
[313607751,1707473432390,-3843.14622509,0.00018142,2]
[313607752,1707473432399,-7984.69564419,0.00018143,2]
[313607753,1707473432409,-1297.69513983,0.00018143,2]
[313607754,1707473432418,-3331.65058421,0.00018144,2]
[313607755,1707473432428,-5282.62575812,0.00018145,2]
[313607756,1707473432437,-1533.39223812,0.00018146,2]
[313607757,1707473432449,-934.58234395,0.00018146,2]
[313607758,1707473432458,-11823.099875,0.00018149,2]
[313607759,1707473432467,-486.05140106,0.000189,2]
[313607760,1707473432479,-736.04345069,0.000189,2]
[313607761,1707473432488,-200.0,0.00019056,2]
[313607762,1707473432497,-169.684484,0.00019178,2]
[313607763,1707473432506,-1117.98621891,0.000195,2]
[313607764,1707473432516,-182.4347729,0.000199,2]
[313607765,1707473432524,-841.12883415,0.0001999,3]
[313607766,1707473432536,-4130.99116585,0.0001999,3]
[313607767,1707473432546,-524.00883415,0.0001999,3]
[313607779,1707473439332,-2734.10753553,0.00018143,2]
[313607781,1707473439342,-3619.43116585,0.0001999,3]
[313607782,1707473439351,-481.47211308,0.00019998,2]
[313607784,1707473439361,-589.25511733,0.00019998,2]
[313607785,1707473439371,-1436.03567126,0.00019998,2]
[313607786,1707473439380,-1961.40823934,0.00019998,2]
[313607787,1707473439389,-175.72920133,0.00019998,2]
[313607788,1707473439399,-181.54986875,0.00019998,2]
[313607789,1707473439408,-609.78077647,0.00019998,2]
[313607790,1707473439417,-214.08706983,0.00019998,2]
[313607791,1707473439426,-748.51563919,0.00019999,3]
[313607792,1707473439435,-33538.01001697,0.0002,2]
[313607793,1707473439445,-155.12875687,0.0002,2]
[313607794,1707473439454,-1291.18671477,0.0002,2]
[313607796,1707473439463,-155.10236756,0.0002,2]
[313607797,1707473439473,-151.0,0.00020715,2]
[313607798,1707473439481,-280.0,0.00020961,2]
[313607799,1707473439491,-182.43477289,0.00020989,2]
[313607800,1707473439500,-309.9380124,0.00021014,2]
[313607801,1707473439509,-155.41971934,0.00021014,2]
[313607802,1707473439517,-500.0,0.00021015,2]
[313607803,1707473439526,-4179.85662615,0.00021015,2]
[313607804,1707473439535,-377.7496095,0.00021096,2]
[313607805,1707473439544,-151.0,0.00021432,2]
[313607806,1707473439553,-166.666666,0.00021918,2]
[313607807,1707473439562,-294.40214372,0.00022,4]
[313607808,1707473439571,-165.55976079,0.00022,2]
[313607809,1707473439580,-426.88835692,0.00022,2]
[313607810,1707473439589,-182.43477289,0.00022079,2]
[313607811,1707473439598,-151.0,0.00022148,2]
[313607812,1707473439607,-513.46090711,0.00022275,2]
[313607813,1707473439616,-310.0542595,0.00022288,2]
[313607814,1707473439625,-344.03161985,0.00022288,2]
[313607815,1707473439633,-622.47720298,0.00022288,2]
[313607816,1707473439642,-1652.44337949,0.00022288,2]
[313607817,1707473439651,-310.04805764,0.00022288,2]
[313607818,1707473439661,-239.97001572,0.00022288,2]
[313607819,1707473439670,-166.666666,0.00022431,2]
[313607820,1707473439679,-151.0,0.00022865,2]
[313607821,1707473439688,-166.666666,0.00022944,2]
[313607822,1707473439697,-1000.0,0.00023,23]
[313607823,1707473439707,-792.7328662,0.00023,2]
[313607824,1707473439717,-391.0,0.00023057,7]
[313607825,1707473439725,-182.43477289,0.00023168,2]
[313607826,1707473439735,-461.23726915,0.00023173,2]
[313607827,1707473439744,-3452.86,0.00023257,3]
[313607828,1707473439754,-500.0,0.00023266,2]
[313607829,1707473439764,-500.0,0.00023266,2]
[313607830,1707473439774,-235.57961552,0.00023266,2]
[313607831,1707473439789,-2544.66826103,0.00023266,2]
[313607832,1707473439802,-470.17012794,0.00023266,2]
[313607833,1707473439816,-369.27345819,0.00023266,2]
[313607834,1707473439829,-500.0,0.00023266,2]
[313607835,1707473439839,-548.54319458,0.00023266,2]
[313607836,1707473439851,-2544.66826103,0.00023266,2]
[313607837,1707473439863,-382.82665337,0.00023266,2]
[313607838,1707473439876,-500.0,0.00023266,2]
[313607839,1707473439890,-500.0,0.00023266,2]
[313607840,1707473439903,-2544.66826103,0.00023266,2]
[313607841,1707473439916,-500.0,0.00023266,2]
[313607842,1707473439928,-2544.66826103,0.00023266,2]
[313607843,1707473439938,-2544.66826103,0.00023266,2]
[313607844,1707473439950,-154.54759241,0.00023266,2]
[313607845,1707473439962,-500.0,0.00023266,2]
[313607846,1707473439974,-500.0,0.00023266,2]
[313607847,1707473439986,-2544.66826103,0.00023266,2]
[313607848,1707473439998,-2544.66826103,0.00023266,2]
[313607849,1707473440011,-500.0,0.00023266,2]
[313607850,1707473440024,-500.0,0.00023266,2]
[313607851,1707473440035,-2544.66826103,0.00023266,2]
[313607852,1707473440045,-500.0,0.00023266,2]
[313607853,1707473440059,-201.79682876,0.00023266,2]
[313607854,1707473440088,-619.59764545,0.00023266,2]
[313607873,1707473443656,-1723.27378682,0.00023266,2]
[313607874,1707473443668,-2357.18509294,0.00023266,2]
[313607937,1707473446434,-1305.42193636,0.00023265,2]
[313607939,1707473446443,-187.48316809,0.00023266,2]
[313607941,1707473446453,-500.0,0.00023266,2]
[313607943,1707473446462,-500.0,0.00023266,2]
[313607945,1707473446472,-2544.66826103,0.00023266,2]
[313607947,1707473446480,-2544.66826103,0.00023266,2]
[313607949,1707473446489,-2544.66826103,0.00023266,2]
[313607951,1707473446498,-2544.66826103,0.00023266,2]
[313607953,1707473446508,-2544.66826103,0.00023266,2]
[313607955,1707473446517,-2544.66826103,0.00023266,2]
[313607956,1707473446527,-2544.66826103,0.00023266,2]
[313607958,1707473446536,-2544.66826103,0.00023266,2]
[313607960,1707473446546,-2544.66826103,0.00023266,2]
[313607962,1707473446555,-2535.56950481,0.00023266,2]
[313607965,1707473446572,-2399.48886265,0.00023265,2]
[313607967,1707473446581,-9.09875622,0.00023266,2]
[313607969,1707473446591,-2544.66826103,0.00023266,2]
[313607971,1707473446601,-2544.66826103,0.00023266,2]
[313607973,1707473446610,-1716.60585337,0.00023266,2]
[313607982,1707473653065,198.003409,0.00027397,120]
[313607993,1707474183022,198.003415,0.00027397,120]
[313608041,1707474639858,-155.06047358,0.00019573,3]
[313608043,1707474639868,-2467.97458207,0.00019573,2]
[313608045,1707474639878,-5282.62575812,0.00019574,2]
[313608047,1707474639887,-1052.40440347,0.00019585,2]
[313608054,1707474639955,-298.19948269,0.00019585,2]
[313608055,1707474639966,-1799.46661684,0.00019585,2]
[313608056,1707474639976,-487.83180561,0.00019622,2]
[313608057,1707474639987,-1577.14668749,0.00019622,2]
[313608058,1707474639996,-66672.06990431,0.00020218,2]
[313608168,1707474644727,-456.7344546,0.00019572,2]
[313608170,1707474644737,-6520.49129924,0.00020218,2]
[313608173,1707474644750,-704.31837846,0.00020218,2]
[313608175,1707474644760,-3896.0,0.00020219,3]
[313608177,1707474644770,-2205.95277616,0.00020219,3]
[313608356,1707474863987,198.003415,0.00027397,120]
[313608470,1707475831743,-155.05892239,0.00018207,3]
[313608471,1707475831753,-2949.25731058,0.00018769,2]
[313608473,1707475831774,-1149.48839949,0.00018769,2]
[313608716,1707475842834,-962.23909208,0.00018769,2]
[313608760,1707475845021,-221.64095597,0.00018769,2]
[313608761,1707475845031,-2087.5586101,0.0001877,2]
[313608762,1707475845040,-1040.8718319,0.00018893,2]
[313608763,1707475845050,-1068.32351742,0.000189,2]
[313608764,1707475845059,-1202.14018038,0.0002,2]
[313608765,1707475845068,-165.28164476,0.00020119,2]
[313608766,1707475845077,-372.57666571,0.00020119,2]
[313608767,1707475845086,-30231.11311578,0.00020131,2]
[313608775,1707475845745,-493.29,0.00020121,3]
[313608812,1707476958322,1040.8718319,0.00017018,2]
[313608817,1707476989016,93959.1281681,0.00017018,2]
[313608818,1707476989043,191386.06607965,0.00017018,2]
[313608819,1707476989710,1097.14121501,0.00017018,2]
[313608820,1707476996176,155.01705188,0.00017018,2]
[313608821,1707476999663,1313.48879084,0.00017018,2]
[313608824,1707477002884,1653.06040995,0.00017018,2]
[313608825,1707477003099,58893.67660115,0.00017018,2]
[313608826,1707477004390,622.68528772,0.00017018,2]
[313608827,1707477005720,1097.14121501,0.00017018,2]
[313608828,1707477006051,155.01240099,0.00017018,2]
[313608829,1707477010179,155.01240099,0.00017018,2]
[313608830,1707477015650,684.32766003,0.00017018,2]
[313608831,1707477015891,252.37300851,0.00017018,2]
[313608832,1707477018776,1651.82634903,0.00017018,2]
[313608833,1707477021745,1097.14121501,0.00017018,2]
[313608834,1707477022349,344.13606673,0.00017018,2]
[313608835,1707477022385,622.68528772,0.00017018,2]
[313608836,1707477024035,155.01550155,0.00017018,2]
[313608837,1707477024132,10324.50896271,0.00017018,2]
[313608838,1707477028208,155.01550155,0.00017018,2]
[313608860,1707477031884,279.19784358,0.00017018,2]
[313608865,1707477033646,684.32766003,0.00017018,2]
[313608878,1707477034792,-981.02470086,0.00017986,2]
[313608879,1707477034801,-3331.65058421,0.00017987,2]
[313608880,1707477034810,-5282.62575812,0.00017987,2]
[313608881,1707477034820,-155.01240099,0.00017988,2]
[313608882,1707477034829,-4496.73960399,0.00017988,2]
[313608883,1707477034838,-155.01240099,0.00017989,3]
[313608884,1707477034847,-1381.67350953,0.00017989,2]
[313608885,1707477034856,-155.02170304,0.00017991,3]
[313608886,1707477034865,-24900.0,0.00018004,2]
[313608887,1707477034874,-3634.75988302,0.00018078,2]
[313608888,1707477034883,-208.6110576,0.00018211,2]
[313608889,1707477034892,-200.0,0.00018894,2]
[313608890,1707477034902,-870.4471017,0.000189,2]
[313608891,1707477034910,-165.28164476,0.0001989,2]
[313608892,1707477034921,-3236.85,0.0001999,3]
[313608893,1707477034929,-5542.67,0.0001999,3]
[313608894,1707477034938,-4618.89,0.0001999,3]
[313608895,1707477034947,-3849.07,0.0001999,3]
[313608896,1707477034956,-2189.90694205,0.00019998,5]
[313608897,1707477034966,-176.79655507,0.00019998,2]
[313608898,1707477034976,-1311.40596069,0.00019999,3]
[313608899,1707477034985,-1889.72493511,0.0002,2]
[313608900,1707477034997,-3871.27049334,0.0002,2]
[313608907,1707477037739,1097.14121501,0.00017018,2]
[313608923,1707477039711,-155.01550155,0.00017985,2]
[313608924,1707477039721,-155.01550155,0.00017986,3]
[313608925,1707477039730,-14689.9689969,0.0002,2]
[313608926,1707477040397,622.68528772,0.00017018,2]
[313608962,1707477041225,344.13606673,0.00017018,2]
[313608967,1707477041269,-42328.62896361,0.0002,2]
[313608970,1707477041283,-251.39133245,0.0002,2]
[313609061,1707477042126,10324.50896271,0.00017018,2]
[313609090,1707477044102,156.32530538,0.00017018,2]
[313609093,1707477044538,-10865.8948606,0.0002,2]
[313609094,1707477044547,-1291.18671477,0.0002,2]
[313609095,1707477044556,-833.66848753,0.0002,2]
[313609096,1707477044565,-299.34580309,0.0002,2]
[313609099,1707477044574,-1202.14018038,0.0002,2]
[313609100,1707477044583,-165.28164476,0.00020029,2]
[313609102,1707477044599,-152.05651612,0.00020081,2]
[313609107,1707477044614,-300.0,0.00020121,2]
[313609110,1707477044628,-2091.03843255,0.00020121,2]
[313609115,1707477044643,-151.0,0.00020121,2]
[313609118,1707477044654,-151.0,0.00020121,2]
[313609121,1707477044665,-154.023822,0.00020121,2]
[313609125,1707477044680,-151.0,0.00020121,2]
[313609127,1707477044692,-1859.71951506,0.00020129,2]
[313609129,1707477044706,-1961.03902914,0.0002013,2]
[313609131,1707477044719,-3207.56,0.00020223,3]
[313609132,1707477044732,-1947.3753187,0.0002023,2]
[313609133,1707477044745,-667.56578048,0.00020231,2]
[313609134,1707477044757,-50000.0,0.00020233,2]
[313609135,1707477044767,-244.311395,0.00020233,2]
[313609136,1707477044780,-154.561332,0.00020233,2]
[313609137,1707477044792,-407.4010052,0.00020274,2]
[313609138,1707477044805,-245.0436255,0.00020274,2]
[313609139,1707477044816,-222.4624683,0.00020548,2]
[313609140,1707477044829,-153.0,0.00020548,2]
[313609141,1707477044842,-153.0,0.00020548,2]
[313609142,1707477044854,-153.0,0.00020548,2]
[313609143,1707477044864,-153.0,0.00020548,2]
[313609144,1707477044874,-153.0,0.00020641,2]
[313609145,1707477044889,-1521.81058194,0.00020722,2]
[313609146,1707477044900,-280.0,0.00020783,2]
[313609147,1707477044914,-500.0,0.00020822,2]
[313609148,1707477044926,-320.3140726,0.00020822,2]
[313609149,1707477044938,-997.96982826,0.00020822,2]
[313609150,1707477044949,-500.0,0.00020822,2]
[313609151,1707477044962,-997.96982826,0.00020822,2]
[313609152,1707477044974,-997.96982826,0.00020822,2]
[313609154,1707477044988,-997.96982826,0.00020822,2]
[313609157,1707477045001,-455.24671607,0.00020822,2]
[313609158,1707477045014,-997.96982826,0.00020822,2]
[313609159,1707477045027,-500.0,0.00020822,2]
[313609160,1707477045038,-997.96982826,0.00020822,2]
[313609162,1707477045048,-997.96982826,0.00020822,2]
[313609164,1707477045059,-997.96982826,0.00020822,2]
[313609165,1707477045070,-997.96982826,0.00020822,2]
[313609166,1707477045082,-879.25436525,0.00020822,2]
[313609167,1707477045156,-118.71546301,0.00020822,2]
[313609168,1707477045166,-997.96982826,0.00020822,2]
[313609169,1707477045178,-997.96982826,0.00020822,2]
[313609170,1707477045190,-997.96982826,0.00020822,2]
[313609171,1707477045201,-627.83369188,0.00020822,2]
[313609173,1707477045433,-370.13613638,0.00020822,2]
[313609174,1707477045444,-997.96982826,0.00020822,2]
[313609176,1707477045456,-719.57403769,0.00020822,2]
[313609178,1707477045469,-278.39579057,0.00020822,2]
[313609179,1707477045480,-126.46270233,0.00020822,2]
[313609226,1707477046081,-871.50712593,0.00020822,2]
[313609227,1707477046092,-36.70858582,0.00020822,2]
[313609228,1707477046107,-848.91083595,0.00020822,2]
[313609229,1707477046135,-112.35040649,0.00020822,2]
[313609230,1707477046146,-382.40959351,0.00020822,2]
[313609231,1707477046191,203.71754861,0.00017018,2]
[313609237,1707477053730,684.32766003,0.00017018,2]
[313609238,1707477059722,1097.14121501,0.00017018,2]
[313609239,1707477060120,2833.05784921,0.00017018,2]
[313609240,1707477060149,7491.4511135,0.00017018,2]
[313609241,1707477060395,622.68528772,0.00017018,2]
[313609242,1707477062354,344.13606673,0.00017018,2]
[313609243,1707477071667,684.32766003,0.00017018,2]
[313609244,1707477078138,4364.04097795,0.00017018,2]
[313609245,1707477080401,470.05909106,0.00017018,2]
[313609246,1707477081765,1097.14121501,0.00017018,2]
[313609247,1707477082360,344.13606673,0.00017018,2]
[313609248,1707477089663,684.32766003,0.00017018,2]
[313609249,1707477100358,339.84168788,0.00017018,2]
[313609250,1707477105748,1097.14121501,0.00017018,2]
[313609251,1707477107800,684.32766003,0.00017018,2]
[313609252,1707477119762,857.96744749,0.00017018,2]
[313609255,1707477125667,684.32766003,0.00017018,2]
[313609256,1707477141707,684.32766003,0.00017018,2]
[313609258,1707477163683,684.32766003,0.00017018,2]
[313609259,1707477183738,684.32766003,0.00017018,2]
[313609260,1707477201690,714.69177956,0.00017018,2]
[313609261,1707477991188,-154.98450155,0.0001745,2]
[313609262,1707477991208,-719.85189847,0.00017451,2]
[313609263,1707477991228,-981.02470086,0.00017451,2]
[313609264,1707477991248,-5282.62575812,0.00017452,2]
[313609265,1707477991271,-1394.50832609,0.00017457,2]
[313609266,1707477992260,-5000000.0,0.00042472,60]
[313609295,1707478233895,-6506.2267488,0.00017457,2]
[313609334,1707478241347,-249.993024,0.00017457,2]
[313609341,1707478241408,-16749.27190111,0.00017457,2]
[313609343,1707478241417,-162.21176964,0.00017898,2]
[313609345,1707478241428,-491.25733678,0.00017998,2]
[313609347,1707478241438,-175.728864,0.00018181,2]
[313609349,1707478241447,-14935.997863,0.00018293,2]
[313609351,1707478241457,-200.0,0.00018328,2]
[313609353,1707478241468,-155.03255684,0.00018738,3]
[313609355,1707478241479,-1018.57925748,0.000189,2]
[313609358,1707478241490,-221.8691778,0.0001919,2]
[313609359,1707478241500,-153.0,0.00019452,2]
[313609361,1707478241511,-200.0032966,0.00019452,2]
[313609364,1707478241522,-153.0,0.00019452,2]
[313609366,1707478241532,-153.0,0.00019452,2]
[313609367,1707478241542,-200.0032966,0.00019452,2]
[313609370,1707478241552,-1114.9970642,0.000195,2]
[313609371,1707478241561,-153.0,0.00019589,2]
[313609373,1707478241571,-153.0,0.00019941,2]
[313609375,1707478241581,-2880.14,0.0001999,3]
[313609377,1707478241591,-2400.11,0.0001999,3]
[313609380,1707478241601,-1806.15520196,0.0001999,3]
[313609382,1707478241613,-193.93479804,0.0001999,3]
[313609384,1707478241623,-1666.75,0.0001999,3]
[313609386,1707478241633,-362.64246547,0.00019998,2]
[313609388,1707478241642,-322.35466168,0.00019998,2]
[313609390,1707478241650,-261.08056277,0.00019998,2]
[313609391,1707478241662,-237.23888705,0.00019998,2]
[313609393,1707478241671,-181.54986875,0.00019998,2]
[313609395,1707478241681,-500.0,0.00019998,2]
[313609397,1707478241691,-304.35560372,0.00019999,2]
[313609400,1707478241702,-2761.01102354,0.00019999,2]
[313609402,1707478241711,-8012.082129,0.0002,2]
[313609404,1707478241725,-65884.79745301,0.0002,2]
[313609406,1707478241736,-259.7945056,0.00020012,2]
[313609408,1707478241746,-153.0,0.00020078,2]
[313609410,1707478241756,-281.3631985,0.00020078,2]
[313609412,1707478241766,-153.0,0.00020078,2]
[313609414,1707478241775,-200.0032966,0.00020078,2]
[313609416,1707478241785,-153.0,0.00020078,2]
[313609418,1707478241794,-153.0,0.00020078,2]
[313609420,1707478241803,-153.0,0.00020078,2]
[313609422,1707478241812,-200.0032966,0.00020078,2]
[313609423,1707478241821,-280.0,0.00020161,2]
[313609425,1707478241830,-153.0,0.00020274,2]
[313609427,1707478241839,-198.570733,0.00020274,2]
[313609429,1707478241848,-168.1555127,0.00020274,2]
[313609431,1707478241857,-153.0,0.00020274,2]
[313609433,1707478241866,-153.0,0.00020274,2]
[313609435,1707478241875,-200.0032966,0.00020278,2]
[313609437,1707478241884,-153.0,0.00020278,2]
[313609439,1707478241893,-153.0,0.00020278,2]
[313609441,1707478241902,-153.0,0.00020548,2]
[313609443,1707478241911,-153.0,0.00020548,2]
[313609445,1707478241920,-153.0,0.00020548,2]
[313609447,1707478241929,-153.0,0.00020548,2]
[313609449,1707478241938,-153.0,0.00020548,2]
[313609451,1707478241947,-153.0,0.00020548,2]
[313609453,1707478241956,-1369.6295238,0.00020722,2]
[313609455,1707478241966,-17911.16350322,0.00020817,2]
[313609457,1707478241976,-1201.66555398,0.0002082,2]
[313609459,1707478241985,-906.16625216,0.0002082,2]
[313609461,1707478241995,-486.58583378,0.0002082,2]
[313609463,1707478242004,-381.54997536,0.00020821,2]
[313609465,1707478242014,-615.56023475,0.00020822,2]
[313609468,1707478242024,-545.74313176,0.00020822,2]
[313609737,1707478244648,-719.85189847,0.00017456,2]
[313609740,1707478244659,-452.2266965,0.00020822,2]
[313609742,1707478244670,-997.96982826,0.00020822,2]
[313609744,1707478244680,-997.96982826,0.00020822,2]
[313609746,1707478244688,-997.96982826,0.00020822,2]
[313609748,1707478244697,-509.01192024,0.00020822,2]
[313609750,1707478244709,-488.95790802,0.00020822,2]
[313609752,1707478244718,-997.96982826,0.00020822,2]
[313609754,1707478244728,-997.96982826,0.00020822,2]
[313609756,1707478244738,-997.96982826,0.00020822,2]
[313609758,1707478244747,-997.96982826,0.00020822,2]
[313609760,1707478244755,-997.96982826,0.00020822,2]
[313609762,1707478244764,-997.96982826,0.00020822,2]
[313609764,1707478244773,-997.96982826,0.00020822,2]
[313609766,1707478244782,-997.96982826,0.00020822,2]
[313609768,1707478244791,-60.27865099,0.00020822,2]
[313611838,1707478267306,1472.11367055,0.00015615,2]
[313613680,1707478287285,994.3007606,0.00015614,2]
[313613684,1707478287314,360.40613699,0.00015614,2]
[313614534,1707478381299,1472.11367055,0.00014999,2]
[313614535,1707478403327,1472.11367055,0.00014999,2]
[313614536,1707478421320,1472.11367055,0.00014999,2]
[313614537,1707478443404,669.38086829,0.00014999,2]
[313614538,1707478470533,9609.0,0.00016,2]
[313614539,1707478940589,9944.87198307,0.00016865,2]
[313614540,1707478940621,4991.12587993,0.00016865,2]
[313614950,1707479169633,20008.87412007,0.00016847,2]
[313614951,1707479169665,4891.12587993,0.00016847,2]
[313614952,1707479207366,34108.87412007,0.00016847,2]
[313614953,1707479207396,23428.05118171,0.00016847,2]
[313614959,1707479352869,155.87859136,0.00014999,2]
[313614960,1707479354655,344.13606673,0.00016847,2]
[313614961,1707479356802,154.9690062,0.00016847,2]
[313614962,1707479357316,155.28601563,0.00016847,2]
[313614963,1707479357629,96.42386769,0.00016847,2]
[313614964,1707479357656,58.54513851,0.00016847,2]
[313614965,1707479358448,154.9690062,0.00016847,2]
[313614966,1707479362203,252.37300851,0.00016847,2]
[313614969,1707479372647,344.13606673,0.00016847,2]
[313614970,1707479373311,155.06667867,0.00016847,2]
[313614971,1707479375611,154.95351395,0.00016847,2]
[313614972,1707479375832,954.910208,0.00016733,2]
[313614973,1707479376423,154.95351395,0.00016847,2]
[313614974,1707479376782,154.95351395,0.00016847,2]
[313614977,1707479382206,252.37300851,0.00016847,2]
[313614978,1707479388642,344.13606673,0.00016847,2]
[313614979,1707479391292,190.60828467,0.00016847,2]
[313614980,1707479394803,216.58882767,0.00016847,2]
[313614981,1707479395628,154.95351395,0.00016847,2]
[313614982,1707479398430,173.41567716,0.00016847,2]
[313614983,1707479400192,252.37300851,0.00016847,2]
[313614986,1707479404660,344.13606673,0.00016847,2]
[313614987,1707479405999,1097.14121501,0.00016847,2]
[313614988,1707479411618,154.9690062,0.00016847,2]
[313614989,1707479420214,255.98383511,0.00016847,2]
[313614990,1707479420569,10323.00753799,0.00016847,2]
[313614991,1707479420651,344.13606673,0.00016847,2]
[313614992,1707479421572,45101.64792694,0.00016847,2]
[313614993,1707479427979,1097.14121501,0.00016847,2]
[313614994,1707479428702,622.68528772,0.00016847,2]
[313614995,1707479429599,219.56866567,0.00016847,2]
[313615056,1707479434517,-154.9690062,0.00017547,3]
[313615058,1707479434527,-199.81071776,0.00017547,2]
[313615060,1707479434538,-252.85368631,0.00017548,2]
[313615061,1707479434548,-1743.26058973,0.00017722,2]
[313615065,1707479434566,-309.61304631,0.00017722,2]
[313615071,1707479434592,-2443.86596795,0.00017722,2]
[313615073,1707479434602,-1860.4598172,0.00017723,2]
[313615075,1707479434611,-1150.3870901,0.00017723,2]
[313615077,1707479434623,-6834.30855409,0.00017723,2]
[313615079,1707479434633,-2045.48652279,0.00017723,2]
[313615081,1707479434643,-719.85189847,0.00017724,2]
[313615083,1707479434652,-3757.13220272,0.00017724,2]
[313615085,1707479434662,-981.02470086,0.00017725,2]
[313615087,1707479434672,-1032.36645246,0.00017726,3]
[313615089,1707479434682,-323.84552651,0.00017726,2]
[313615091,1707479434692,-20963.39991854,0.00017727,2]
[313615093,1707479434702,-161.35398337,0.00017739,2]
[313615095,1707479434711,-200.0,0.00018618,2]
[313615097,1707479434721,-1088.90433456,0.000189,2]
[313615099,1707479434730,-169.58374,0.00019178,2]
[313615100,1707479434741,-5000.0,0.00019398,2]
[313615103,1707479434751,-1114.9970642,0.000195,2]
[313615105,1707479434761,-210.15507116,0.00019713,2]
[313615107,1707479434771,-3331.65058421,0.00019798,2]
[313615109,1707479434782,-161.35398337,0.00019898,2]
[313615110,1707479434791,-3385.66,0.00019988,3]
[313615113,1707479434801,-2821.38,0.00019988,3]
[313615114,1707479434810,-2351.15,0.00019988,3]
[313615115,1707479434820,-4062.79,0.00019989,3]
[313615116,1707479434830,-820.86834729,0.00019998,2]
[313615118,1707479434839,-230.10628764,0.00019998,2]
[313615120,1707479434848,-155.40765533,0.00019998,2]
[313615122,1707479434857,-481.56201325,0.00019998,2]
[313615124,1707479434867,-674.85676201,0.00019998,2]
[313615126,1707479434876,-1297.69513983,0.00019998,2]
[313615128,1707479434886,-1018.41805308,0.00019998,2]
[313615130,1707479434895,-1533.39223812,0.00019998,2]
[313615132,1707479434905,-257.25410567,0.00019998,2]
[313615133,1707479434914,-155.02015262,0.00019998,2]
[313615134,1707479434924,-609.78077647,0.00019998,2]
[313615135,1707479434933,-330.4947575,0.00019998,2]
[313615136,1707479434943,-155.52458927,0.00019998,2]
[313615137,1707479434951,-261.77080039,0.00019999,7]
[313615138,1707479434961,-5282.62575812,0.00019999,2]
[313615139,1707479434970,-6215.75182149,0.00019999,2]
[313615140,1707479434980,-13560.50291769,0.0002,2]
[313615163,1707479440564,3054.7540617,0.00016847,2]
[313615172,1707479442648,344.13606673,0.00016847,2]
[313615282,1707479446593,-541.13903089,0.00017546,2]
[313615285,1707479446605,-99.47221282,0.00017546,2]
[313615288,1707479446614,-1746.18903205,0.00017547,2]
[313615291,1707479446623,-155.08064193,0.00019999,2]
[313615294,1707479446633,-785.0781132,0.0002,2]
[313615297,1707479446644,-59551.29855112,0.0002,2]
[313615300,1707479446653,-153.750409,0.00020274,2]
[313615303,1707479446662,-280.0,0.00020479,2]
[313615305,1707479446671,-1232.66657142,0.00020722,2]
[313615308,1707479446680,-2712.51,0.00020812,3]
[313615310,1707479446690,-2109.6618422,0.00020819,2]
[313615313,1707479446699,-161.52708074,0.00020819,2]
[313615316,1707479446708,-937.69117727,0.00020822,2]
[313615319,1707479446718,-997.96982826,0.00020822,2]
[313615322,1707479446727,-997.96982826,0.00020822,2]
[313615325,1707479446736,-997.96982826,0.00020822,2]
[313615328,1707479446747,-997.96982826,0.00020822,2]
[313615331,1707479446757,-997.96982826,0.00020822,2]
[313615334,1707479446766,-997.96982826,0.00020822,2]
[313615337,1707479446776,-997.96982826,0.00020822,2]
[313615340,1707479446785,-997.96982826,0.00020822,2]
[313615343,1707479446794,-997.96982826,0.00020822,2]
[313615346,1707479446804,-997.96982826,0.00020822,2]
[313615349,1707479446813,-997.96982826,0.00020822,2]
[313615352,1707479446823,-997.96982826,0.00020822,2]
[313615355,1707479446833,-997.96982826,0.00020822,2]
[313615358,1707479446842,-997.96982826,0.00020822,2]
[313615360,1707479446851,-997.96982826,0.00020822,2]
[313615362,1707479446860,-997.96982826,0.00020822,2]
[313615364,1707479446869,-997.96982826,0.00020822,2]
[313615366,1707479446878,-997.96982826,0.00020822,2]
[313615367,1707479446887,-997.96982826,0.00020822,2]
[313615369,1707479446896,-997.96982826,0.00020822,2]
[313615371,1707479446905,-997.96982826,0.00020822,2]
[313615372,1707479446915,-997.96982826,0.00020822,2]
[313615374,1707479446924,-997.96982826,0.00020822,2]
[313615376,1707479446933,-997.96982826,0.00020822,2]
[313615378,1707479446942,-997.96982826,0.00020822,2]